Body Name,Body,Service Level,Expense Type,Expense Code,Narrative,Date,Transaction Number,Amount,Capital and Revenue,Supplier Name,Supplier ID
South Ribble Borough Council,http://statistics.data.gov.uk/id/local-authority/30UE,Street Cleansing,Agency Staff,1121,NAME REDACTED W/E 18.08.23 - 37.83 hrs @ 15.30ph,06/09/2023,0000491759,578.80,Revenue,ACE PERSONNEL,0
South Ribble Borough Council,http://statistics.data.gov.uk/id/local-authority/30UE,Street Cleansing,Agency Staff,1121,"NAME REDACTED W/E 25.08.23 - 35.51 hrs, @ 15.30ph",06/09/2023,0000491862,543.15,Revenue,ACE PERSONNEL,0
South Ribble Borough Council,http://statistics.data.gov.uk/id/local-authority/30UE,Street Cleansing,Agency Staff,1121,"NAME REDACTED W/E 25.08.23 - 37.67 hrs, @ 15.30ph",06/09/2023,0000491862,576.35,Revenue,ACE PERSONNEL,0
South Ribble Borough Council,http://statistics.data.gov.uk/id/local-authority/30UE,Street Cleansing,Agency Staff,1121,"NAME REDACTED W/E 08.09.23 -36.92 hrs, @ 15.30ph",20/09/2023,0000492262,564.88,Revenue,ACE PERSONNEL,0
South Ribble Borough Council,http://statistics.data.gov.uk/id/local-authority/30UE,Street Cleansing,Agency Staff,1121,"NAME REDACTED W/E 15.09.23 -37.25 hrs, @ 15.30ph",27/09/2023,0000492520,569.93,Revenue,ACE PERSONNEL,0
South Ribble Borough Council,http://statistics.data.gov.uk/id/local-authority/30UE,Local Tax Collection,Bank Charges,4811,post office,13/09/2023,0000491956,577.82,Revenue,ALLPAY LTD,0
South Ribble Borough Council,http://statistics.data.gov.uk/id/local-authority/30UE,Central Support Services,Agency Staff,1121,Agency Staff w/e 20/08/2023 - Week 20,27/09/2023,0000492454,"7,419.95",Revenue,ALS Managed Services Ltd,0
South Ribble Borough Council,http://statistics.data.gov.uk/id/local-authority/30UE,Central Support Services,Agency Staff,1121,Agency Staff w/e 13/08/2023 - Week 19,27/09/2023,0000492456,"8,040.50",Revenue,ALS Managed Services Ltd,0
South Ribble Borough Council,http://statistics.data.gov.uk/id/local-authority/30UE,Central Support Services,Agency Staff,1121,Agency Staff w/e 10/09/2023 - Week 23,27/09/2023,0000492463,"6,026.83",Revenue,ALS Managed Services Ltd,0
South Ribble Borough Council,http://statistics.data.gov.uk/id/local-authority/30UE,Central Support Services,Agency Staff,1121,Agency Staff w/e 27/08/2023 - Week 21,27/09/2023,0000492473,"7,792.07",Revenue,ALS Managed Services Ltd,0
South Ribble Borough Council,http://statistics.data.gov.uk/id/local-authority/30UE,Central Support Services,Agency Staff,1121,Agency Staff w/e 03/09/2023 - Week 22,27/09/2023,0000492474,"8,021.56",Revenue,ALS Managed Services Ltd,0
South Ribble Borough Council,http://statistics.data.gov.uk/id/local-authority/30UE,Central Support Services,External Contractors Charges,4570,"Installation of Cat5e network uplinks to 3x solar locations., 4x Roof, 2x conference., 2x Plant Room., Testing and labelling and ",27/09/2023,0000492432,580.00,Revenue,AMPEC Limited,0
South Ribble Borough Council,http://statistics.data.gov.uk/id/local-authority/30UE,Surplus or Deficit on Trading,Planned Annual Repair & Maintenance,2021,"Corporate Buildings - South Ribble Borough Council as per NAME REDACTED , , Building or Area Description buildings that have identi",20/09/2023,0000492184,"2,663.00",Revenue,APEC Environmental Ltd,0
South Ribble Borough Council,http://statistics.data.gov.uk/id/local-authority/30UE,Capital,Cap Contract Payment,C230,"Archaeological Watching Brief, Worden Park (August 2023 onwards)",06/09/2023,0000491937,"8,100.00",Revenue,Archaeological Research Services Ltd,0
South Ribble Borough Council,http://statistics.data.gov.uk/id/local-authority/30UE,Elections,Electoral Administration Act,4970,Attendance on 3 x Election Act � Tranche 2 Measures courses for NAME REDACTED & NAME REDACTED,20/09/2023,0000492328,742.50,Revenue,ASSOC OF ELECTORAL ADMINISTRATORS LTD,0
South Ribble Borough Council,http://statistics.data.gov.uk/id/local-authority/30UE,Central Support Services,Consultancy Fees,4541,"ENG/ATT/SNR, Senior engineer attendance for emergency repairs and meeting supervision",27/09/2023,0000492581,995.00,Revenue,AUDITEL,0
South Ribble Borough Council,http://statistics.data.gov.uk/id/local-authority/30UE,Open Spaces,Operational Equip & Tools,4010,"Qty 1 x 7ft Heavy Duty Cat 2 three-point linkage mounted 4 bar grader (100mm x 8mm bars), Net cost per unit 950 + 100 Ex Works ",20/09/2023,0000492194,"1,050.00",Revenue,BALMERS GM LTD,0
South Ribble Borough Council,http://statistics.data.gov.uk/id/local-authority/30UE,Short Term Creditors,Bank ac Unident Income,0008,refund of payment rec`d in error,20/09/2023,0000489944,"33,443.03",Revenue,Barratt Homes (Manchester),0
South Ribble Borough Council,http://statistics.data.gov.uk/id/local-authority/30UE,Surplus or Deficit on Trading,Planned Annual Repair & Maintenance,2021,This order is to cover the remedials following the fixed wire testing on the sites sent on the spreadsheet,13/09/2023,0000492156,533.00,Revenue,BELEC ELECTRICAL LTD,0
South Ribble Borough Council,http://statistics.data.gov.uk/id/local-authority/30UE,Surplus or Deficit on Trading,Planned Annual Repair & Maintenance,2021,This order is to cover the remedials following the fixed wire testing on the sites sent on the spreadsheet,20/09/2023,0000492158,547.00,Revenue,BELEC ELECTRICAL LTD,0
South Ribble Borough Council,http://statistics.data.gov.uk/id/local-authority/30UE,Surplus or Deficit on Trading,Planned Annual Repair & Maintenance,2021,This order is to cover the remedials following the fixed wire testing on the sites sent on the spreadsheet,20/09/2023,0000492159,742.30,Revenue,BELEC ELECTRICAL LTD,0
South Ribble Borough Council,http://statistics.data.gov.uk/id/local-authority/30UE,Central Support Services,Planned Annual Repair & Maintenance,2021,"Hurst grange coach house (out of hours)	Fixed Wire Test	Yearly		Light commercial	650.00",27/09/2023,0000492199,650.00,Revenue,BELEC ELECTRICAL LTD,0
South Ribble Borough Council,http://statistics.data.gov.uk/id/local-authority/30UE,Surplus or Deficit on Trading,Planned Annual Repair & Maintenance,2021,"Worden park pavilions X 6	Fixed Wire Test	Yearly		Sports Pavilion	500.00",27/09/2023,0000492208,500.00,Revenue,BELEC ELECTRICAL LTD,0
South Ribble Borough Council,http://statistics.data.gov.uk/id/local-authority/30UE,Central Support Services,Planned Annual Repair & Maintenance,2021,"Moss Side Depot	Fixed Wire Test	Yearly		Heavy commercial (Sockets, lighting, server supply, fuel reserve, outhouses, 3 phase mach",27/09/2023,0000492209,"1,500.00",Revenue,BELEC ELECTRICAL LTD,0
South Ribble Borough Council,http://statistics.data.gov.uk/id/local-authority/30UE,Central Support Services,Lancashire Payroll Service,4531,Payroll ad hoc charges 2023/24,06/09/2023,0000491831,"9,528.00",Revenue,Blackpool Council,0
South Ribble Borough Council,http://statistics.data.gov.uk/id/local-authority/30UE,Community Development,Professional Fees,4510,"BoxClever Summer HAF Camps no food @ 10 per place (week 4), Week 4: Monday to Thursday. 120 places = 1,200; , , BoxClever Summe",13/09/2023,0000492111,"2,880.00",Revenue,Box Clever CIC,0
South Ribble Borough Council,http://statistics.data.gov.uk/id/local-authority/30UE,Community Development,Professional Fees,4510,"Summer HAF Camps and food @ 14 per place, , Week 2: Monday to Thursday. 120 places = 1,680, , Week 3: Monday to Thursday. 120 p",13/09/2023,0000492120,"3,360.00",Revenue,Box Clever CIC,0
South Ribble Borough Council,http://statistics.data.gov.uk/id/local-authority/30UE,Capital,Cap Contract Payment,C230,8no. Edinburgh PU removable bollards,27/09/2023,0000492344,"1,936.00",Revenue,BROXAP LTD,0
South Ribble Borough Council,http://statistics.data.gov.uk/id/local-authority/30UE,Capital,Cap Contract Payment,C230,5no. Penny Farthing cycle standards,27/09/2023,0000492344,"1,175.00",Revenue,BROXAP LTD,0
South Ribble Borough Council,http://statistics.data.gov.uk/id/local-authority/30UE,Capital,Cap Contract Payment,C230,"Ground Surveys CPT & GPR - Jubilee Gardens, West Paddock, Leyland",27/09/2023,0000492419,"12,350.00",Revenue,Caddick Construction (NW) Ltd,0
South Ribble Borough Council,http://statistics.data.gov.uk/id/local-authority/30UE,Central Support Services,IT Consumables,413A,"DWP LA Data Share (LADS) Programme: IT Costs for work completed, during the period 1/10/2022 to 31/3/2023 per correspondence date",06/09/2023,0000491802,"9,926.69",Revenue,CAPITA BUSINESS SERVICES LTD,0
South Ribble Borough Council,http://statistics.data.gov.uk/id/local-authority/30UE,Central Support Services,Agency Staff,1121,Planning Consultant NAME REDACTED in respect of the Logik planning application,13/09/2023,0000491024,"15,480.00",Revenue,CAPITA PROPERTY AND INFRASTRUCTURE LTD,0
South Ribble Borough Council,http://statistics.data.gov.uk/id/local-authority/30UE,Community Development,Professional Fees,4510,"Carr Manor Nursery : Summer HAF Camps including food @ 15 per place, , Week 2 x60 = 900; , Week 3 x60 = 900; , Week 4 x60 = 9",27/09/2023,0000492304,"3,600.00",Revenue,Carr Manor Nursery,0
South Ribble Borough Council,http://statistics.data.gov.uk/id/local-authority/30UE,Central Support Services,Materials General,4040,4000ltrs Adblue @ 58ppl,13/09/2023,0000491835,"1,800.00",Revenue,CGN Limited,0
South Ribble Borough Council,http://statistics.data.gov.uk/id/local-authority/30UE,Recreation & Sport,Software Licensing,4243,"12 Months CAP2 invoice paid as part of Chorley Contract to gain reduced cost. , , Cap2 - Migration (per day) 5 995.00 one off 4",13/09/2023,0000481650,"18,579.50",Revenue,CHORLEY BOROUGH COUNCIL,0
South Ribble Borough Council,http://statistics.data.gov.uk/id/local-authority/30UE,Homelessness,Temporary Accommodation,5311,Payment now due from SRBC Housing Options to Chorley Borough Council for its RSP (Rough Sleeper Provision) at their Cotswold Hous,20/09/2023,0000492251,"1,392.00",Revenue,CHORLEY BOROUGH COUNCIL,0
South Ribble Borough Council,http://statistics.data.gov.uk/id/local-authority/30UE,General Grants Bequests & Dona,Contributions to Other Bodies,4730,"Year 4 2023 / 2024 Grant provision for advice services as per grant agreement., , 50,000",06/09/2023,0000491906,"25,000.00",Revenue,Citizens Advice Lancashire,0
South Ribble Borough Council,http://statistics.data.gov.uk/id/local-authority/30UE,Central Support Services,Software Licensing,4243,"SRBC - PAY0383SOU-A 3750 PO - TBC - CivicaPay - Transactions upto 75k pa Year 3 (30/09/2023 - 29/09/2024), SRBC - PAY0383SOU-A	12",27/09/2023,0000492248,"18,125.00",Revenue,CIVICA UK LTD,0
South Ribble Borough Council,http://statistics.data.gov.uk/id/local-authority/30UE,Homelessness,Contributions to Other Bodies,4730,Four weeks` rent in advance for tenant at Tom Hanson House. Tenant was refused DHP so council has agreed to pay her rent in advan,20/09/2023,0000492347,600.52,Revenue,COMMUNITY GATEWAY HOUSING ASSOCIATION,0
South Ribble Borough Council,http://statistics.data.gov.uk/id/local-authority/30UE,Capital,Capital Grant,C570,DFG WORK FOR ADAPTATION FOR BEDROOM AND BATHROOM ADAPTATION AT ADDRESS REDACTED AS PER SRBC PLANS AND QUOTE SUPPLIED OF ,27/09/2023,0000492481,"15,000.00",Revenue,Cornerstone Building & Maintenance Ltd,0
South Ribble Borough Council,http://statistics.data.gov.uk/id/local-authority/30UE,Central Support Services,Miscellaneous Expenses,4851,Eviction of GRT from King Street Car Park King Street Leyland on 17.8.23 (1300-18.00),27/09/2023,0000492533,"1,400.00",Revenue,Court Enforcement Specialists Ltd,0
South Ribble Borough Council,http://statistics.data.gov.uk/id/local-authority/30UE,Local Tax Collection,Postage General,4291,POSTAGE FOR APRIL TO MAY 2023,06/09/2023,0000491860,"1,502.99",Revenue,CRITIQOM,0
South Ribble Borough Council,http://statistics.data.gov.uk/id/local-authority/30UE,Local Tax Collection,Postage General,4291,POSTAGE FOR APRIL TO MAY 2023,06/09/2023,0000491861,578.85,Revenue,CRITIQOM,0
South Ribble Borough Council,http://statistics.data.gov.uk/id/local-authority/30UE,Capital,Consultancy,C259,"Jubilee Gardens Extra Care, West Paddock - Letter of Reliance",06/09/2023,0000491025,600.00,Revenue,Crossfield Consulting Ltd,0
South Ribble Borough Council,http://statistics.data.gov.uk/id/local-authority/30UE,Capital,Cap Professional Fees,C210,Leyland Town Deal - Highways Consultancy Fees Quin St RIBA 4,06/09/2023,0000491004,793.00,Revenue,Curtins Consulting Ltd,0
South Ribble Borough Council,http://statistics.data.gov.uk/id/local-authority/30UE,Capital,Cap Professional Fees,C210,Leyland Town Deal - Traffic and Transport Engineering Services Professional Fees - Procurement 4: Construction of BASE2 & Commerc,06/09/2023,0000491007,618.00,Revenue,Curtins Consulting Ltd,0
South Ribble Borough Council,http://statistics.data.gov.uk/id/local-authority/30UE,Capital,Cap Professional Fees,C210,Leyland Town Deal - Traffic and Transport Engineering Services Professional Fees - Procurement 3: Public Realm (RIBA 4),06/09/2023,0000491049,"15,500.00",Revenue,Curtins Consulting Ltd,0
South Ribble Borough Council,http://statistics.data.gov.uk/id/local-authority/30UE,Capital,Cap Professional Fees,C210,Leyland Town Deal - Traffic and Transport Engineering Services Professional Fees - Procurement 3: Public Realm (RIBA 4),06/09/2023,0000491076,"4,000.00",Revenue,Curtins Consulting Ltd,0
South Ribble Borough Council,http://statistics.data.gov.uk/id/local-authority/30UE,Capital,Cap Professional Fees,C210,Leyland Town Deal - Traffic and Transport Engineering Services Professional Fees - Procurement 3: Public Realm (RIBA 4),06/09/2023,0000491530,"11,500.00",Revenue,Curtins Consulting Ltd,0
South Ribble Borough Council,http://statistics.data.gov.uk/id/local-authority/30UE,Capital,Cap Professional Fees,C210,Fee for Transport Assessment and Statement,06/09/2023,0000491530,"4,800.00",Revenue,Curtins Consulting Ltd,0
South Ribble Borough Council,http://statistics.data.gov.uk/id/local-authority/30UE,Capital,Capital Grant,C570,DFG WORK FOR ADAPTATION FOR BEDROOM/BATHROOM EXTENSION AT ADDRESS REDACTED AS PER SRBC PLANS AND QUOTE SUPPL,20/09/2023,0000492049,"15,000.00",Revenue,D.M FARRELL,0
South Ribble Borough Council,http://statistics.data.gov.uk/id/local-authority/30UE,Recreation & Sport,Telephones-Rental,4261,3/8/2023,27/09/2023,0000492247,533.68,Revenue,Daisy Communications LTD,0
South Ribble Borough Council,http://statistics.data.gov.uk/id/local-authority/30UE,Recreation & Sport,Telephones-Rental,4261,5/9/2023,27/09/2023,0000492603,533.68,Revenue,Daisy Communications LTD,0
South Ribble Borough Council,http://statistics.data.gov.uk/id/local-authority/30UE,Community Development,Miscellaneous Expenses,4851,,06/09/2023,0000491965,500.00,Revenue,Danielle Mensah,0
South Ribble Borough Council,http://statistics.data.gov.uk/id/local-authority/30UE,Community Development,Miscellaneous Expenses,4851,,27/09/2023,0000492560,500.00,Revenue,Danielle Mensah,0
South Ribble Borough Council,http://statistics.data.gov.uk/id/local-authority/30UE,Community Development,Miscellaneous Expenses,4851,,27/09/2023,0000492575,500.00,Revenue,Debbie Moore,0
South Ribble Borough Council,http://statistics.data.gov.uk/id/local-authority/30UE,Central Support Services,Materials General,4040,"1 bumper corner lLH , 1 bumper corner RH, Engine service kit, Hyd Filter kit , VIN REDACTED, JFC20613",20/09/2023,0000492116,"1,031.68",Revenue,DENNIS EAGLE LTD,0
South Ribble Borough Council,http://statistics.data.gov.uk/id/local-authority/30UE,Central Support Services,Fire Extinguishers - R&M,2037,"Annual Compliance Servicing 2023/2024 as per Q 6697 and NAME REDACTED Request , Civic Centre 2 x visits 275 per visit",06/09/2023,0000491868,550.00,Revenue,DES Electrical Services Ltd,0
South Ribble Borough Council,http://statistics.data.gov.uk/id/local-authority/30UE,Surplus or Deficit on Trading,Fire Extinguishers - R&M,2037,Leyland Museum 2 x 250.00,06/09/2023,0000491870,500.00,Revenue,DES Electrical Services Ltd,0
South Ribble Borough Council,http://statistics.data.gov.uk/id/local-authority/30UE,Central Support Services,Fire Extinguishers - R&M,2037,Moss Side Depot 2 x 250.00,06/09/2023,0000491871,500.00,Revenue,DES Electrical Services Ltd,0
South Ribble Borough Council,http://statistics.data.gov.uk/id/local-authority/30UE,Recreation & Sport,Reactive Repair & Maintenance,2020,"Attend site, and sand down and wire brush the rear fire exit stairs at Bamber Bridge Leisure Centre. Apply two of white zinsser a",27/09/2023,0000492350,"1,248.00",Revenue,DES Electrical Services Ltd,0
South Ribble Borough Council,http://statistics.data.gov.uk/id/local-authority/30UE,Open Spaces,Operational Equip & Tools,4010,Office furniture,13/09/2023,0000492073,"1,311.08",Revenue,Diamond Business Interiors Ltd,0
South Ribble Borough Council,http://statistics.data.gov.uk/id/local-authority/30UE,Capital,Cap Contract Payment,C230,Worden Park toilet relocation: fabrication of lifting brackets & the relocation of the existing toilet block.,06/09/2023,0000491778,"5,500.00",Revenue,DP STRUCTURES LTD,0
South Ribble Borough Council,http://statistics.data.gov.uk/id/local-authority/30UE,Capital,Cap Contract Payment,C230,Worden Old hall wall window feature,06/09/2023,0000491779,"4,500.00",Revenue,DP STRUCTURES LTD,0
South Ribble Borough Council,http://statistics.data.gov.uk/id/local-authority/30UE,Capital,Cap Contract Payment,C230,Worden Ice house door- fabrication & installation,06/09/2023,0000491780,"4,800.00",Revenue,DP STRUCTURES LTD,0
South Ribble Borough Council,http://statistics.data.gov.uk/id/local-authority/30UE,Capital,Cap Contract Payment,C230,Deisgn works for the ice house door at Worden Park,06/09/2023,0000491801,"1,500.00",Revenue,DP STRUCTURES LTD,0
South Ribble Borough Council,http://statistics.data.gov.uk/id/local-authority/30UE,Central Support Services,Lifts - R&M,2032,Annual contract 2023/24 for the maintenance of the lifts at the Civic Centre with visit dates to be done 6 times per annum first ,06/09/2023,0000491812,895.00,Revenue,E A Foulds Limited,0
South Ribble Borough Council,http://statistics.data.gov.uk/id/local-authority/30UE,Open Spaces,GM Refurbishment,4657,"Evergreen Seat old style left side casting and Evergreen Bench, all metalwork in Green, as per Quote Ref Q6938 Delivered to PR26 ",06/09/2023,0000491719,810.00,Revenue,EARTH ANCHORS LTD,0
South Ribble Borough Council,http://statistics.data.gov.uk/id/local-authority/30UE,Central Support Services,Hiring Expenses,3212,"Two Weeks Hire, Delivery and Collection of 26T Split body VIN REDACTED, 29.05.23- 12.06.23",13/09/2023,0000491243,"2,155.00",Revenue,Euro Municipals Ltd,0
South Ribble Borough Council,http://statistics.data.gov.uk/id/local-authority/30UE,Central Support Services,Legal,4821,Equalities Act Claim being made against the Council by a NAME REDACTED.,13/09/2023,0000492038,"1,509.00",Revenue,Forbes Solicitors Office,0
South Ribble Borough Council,http://statistics.data.gov.uk/id/local-authority/30UE,Central Support Services,External Contractors Charges,4570,Digital Management Fee 11-25 Drivers (annually),06/09/2023,0000491899,"1,239.00",Revenue,FREIGHT TRANSPORT ASSOCIATION,0
South Ribble Borough Council,http://statistics.data.gov.uk/id/local-authority/30UE,Central Support Services,Materials General,4040,1 hopper floor VIN REDACTED JFC20556,13/09/2023,0000492119,926.75,Revenue,GEESINK NORBA LTD,0
South Ribble Borough Council,http://statistics.data.gov.uk/id/local-authority/30UE,Capital,Cap Contract Payment,C230,Worden Park water treatment packages,20/09/2023,0000492335,"25,000.00",Revenue,H Clarke and Sons Ltd,0
South Ribble Borough Council,http://statistics.data.gov.uk/id/local-authority/30UE,Community Development,External Catering Charges,4575,"Packed lunches for Summer 2023 HAF, , Week 1: Monday x85 = 425.00, Tuesday x85 = 425.00, Wednesday x125 = 625.00, Thursday x11",27/09/2023,0000492216,"2,025.00",Revenue,Halls Bakery Limited,0
South Ribble Borough Council,http://statistics.data.gov.uk/id/local-authority/30UE,Community Development,External Catering Charges,4575,"Packed lunches for Summer 2023 HAF @ 5 per person, , Week 3: Monday x345 = 1,725.00, Tuesday x270 = 1,350.00, Wednesday x310 =",27/09/2023,0000492307,"6,200.00",Revenue,Halls Bakery Limited,0
South Ribble Borough Council,http://statistics.data.gov.uk/id/local-authority/30UE,Community Development,External Catering Charges,4575,"Packed lunches for Summer 2023 HAF @ 5 per person, , Week 4: x605 = 3,025, , Total = 3,025 ex VAT, , Invoice INV-0680",27/09/2023,0000492308,"3,025.00",Revenue,Halls Bakery Limited,0
South Ribble Borough Council,http://statistics.data.gov.uk/id/local-authority/30UE,Surplus or Deficit on Trading,Reactive Repair & Maintenance,2020,", Repair to issues/damage at Worden Park Public Toilets, 1961/1067 Worden Park Total Invoice 235.20, 1691/1070 Worden Park Total ",06/09/2023,0000491836,"2,690.25",Revenue,Healthmatic Limited,0
South Ribble Borough Council,http://statistics.data.gov.uk/id/local-authority/30UE,Central Support Services,Software Licensing,4243,"Access control hardware, Door installation and configuration (including PM), Time recording hardware, Professional Services, Tota",06/09/2023,0000491255,"7,209.00",Revenue,HFX LTD,0
South Ribble Borough Council,http://statistics.data.gov.uk/id/local-authority/30UE,Capital,Consultancy,C259,Project Management Services - Jubilee Gardens (RIBA 4) - As per additional scope v3,06/09/2023,0000491898,"4,000.00",Revenue,Identity Consult Ltd,0
South Ribble Borough Council,http://statistics.data.gov.uk/id/local-authority/30UE,Community Development,Miscellaneous Expenses,4851,,06/09/2023,0000491975,500.00,Revenue,Jemma Naish,0
South Ribble Borough Council,http://statistics.data.gov.uk/id/local-authority/30UE,Community Development,Miscellaneous Expenses,4851,,27/09/2023,0000492570,500.00,Revenue,Jemma Naish,0
South Ribble Borough Council,http://statistics.data.gov.uk/id/local-authority/30UE,Central Support Services,Advertising- Recruitm Exp,1500,Advertising for Principal Planning Officer,13/09/2023,0000491818,900.00,Revenue,JOBSGOPUBLIC,0
South Ribble Borough Council,http://statistics.data.gov.uk/id/local-authority/30UE,Open Spaces,GM Refurbishment,4657,Supply and install of new External Doors at farmyard cottages,06/09/2023,0000491200,"6,000.00",Revenue,John Wade Groundworks Ltd t/a Wade Group,0
South Ribble Borough Council,http://statistics.data.gov.uk/id/local-authority/30UE,Open Spaces,GM Refurbishment,4657,"Removal of Tarmac surface and stone sub-base, re soil and seed",06/09/2023,0000491749,"2,200.00",Revenue,John Wade Groundworks Ltd t/a Wade Group,0
South Ribble Borough Council,http://statistics.data.gov.uk/id/local-authority/30UE,Capital,Cap Contract Payment,C230,Resurfacing to farrington lodge carpark,27/09/2023,0000492274,"3,700.00",Revenue,John Wade Groundworks Ltd t/a Wade Group,0
South Ribble Borough Council,http://statistics.data.gov.uk/id/local-authority/30UE,Open Spaces,External Contractors Charges,4570,Leafy Close footpath works,20/09/2023,0000492325,"4,625.00",Revenue,John Wade Groundworks Ltd t/a Wade Group,0
South Ribble Borough Council,http://statistics.data.gov.uk/id/local-authority/30UE,Open Spaces,Hiring Expenses,3212,"19m Tracked MEWP (Green) hire, 4 x days � pick up 9th May 2023",06/09/2023,0000491713,"1,126.60",Revenue,K H HIRE SERVICES,0
South Ribble Borough Council,http://statistics.data.gov.uk/id/local-authority/30UE,Open Spaces,Hiring Expenses,3212,"1 week hire 11-15th September of;, , 1 x 19m Tracked MEWP",27/09/2023,0000492406,"1,207.50",Revenue,K H HIRE SERVICES,0
South Ribble Borough Council,http://statistics.data.gov.uk/id/local-authority/30UE,Parking Services,Maintenance of Grounds,2040,"Line marking at Hope Terrace Car Park:, , Overlay 20 x parking bay blue lines with white., Re-mark existing 5 x disabled bays.",06/09/2023,0000491767,950.00,Revenue,Kays highways Limited,0
South Ribble Borough Council,http://statistics.data.gov.uk/id/local-authority/30UE,Community Development,Miscellaneous Expenses,4851,,06/09/2023,0000491981,500.00,Revenue,Keith Rutherford,0
South Ribble Borough Council,http://statistics.data.gov.uk/id/local-authority/30UE,Community Development,Miscellaneous Expenses,4851,,27/09/2023,0000492576,500.00,Revenue,Keith Rutherford,0
South Ribble Borough Council,http://statistics.data.gov.uk/id/local-authority/30UE,Community Development,Professional Fees,4510,"Key Unlocking Futures & The Base : Summer HAF Camps including food @ 14 per place, , Week 2 x100 = 1,400; , Week 3 x100 = 1,40",27/09/2023,0000492218,"7,000.00",Revenue,KEY UNLOCKING FUTURES LTD,0
South Ribble Borough Council,http://statistics.data.gov.uk/id/local-authority/30UE,Community Development,Professional Fees,4510,"Kick On Football Summer HAF Camps @ 10 per place, , Week 2 x225 = 2,250; , Week 3 x225 = 2,250; , Week 4 x225 = 2,250, , Tota",27/09/2023,0000492312,"6,750.00",Revenue,Kick On Football Coaching,0
South Ribble Borough Council,http://statistics.data.gov.uk/id/local-authority/30UE,Surplus or Deficit on Trading,Rents,2401,"Payment of quarterly rental charge at Forward Industrial Estate, L2 Property Limited for 2023/2024, Quarter 3",27/09/2023,0000492452,"16,147.50",Revenue,L2 Property Limited,0
South Ribble Borough Council,http://statistics.data.gov.uk/id/local-authority/30UE,Central Support Services,College Course,1403,Level 3 Certificate in Building Control for NAME REDACTED starting 03/07/2023 for 25 weeks,06/09/2023,0000491815,600.00,Revenue,LABC,0
South Ribble Borough Council,http://statistics.data.gov.uk/id/local-authority/30UE,Central Support Services,Professional Fees,4510,LABC Service Fee 23/24,20/09/2023,0000492330,"2,147.11",Revenue,LABC,0
South Ribble Borough Council,http://statistics.data.gov.uk/id/local-authority/30UE,Democratic Represent and  Mgnt,Members Training,1406,"15 September 2023, Nat Lofthouse room 393.50 Plus two small rooms (as agreed on 31.08.23) at 120 each = 240.00, 0",27/09/2023,0000492604,633.60,Revenue,LANCASHIRE FOOTBALL ASSOCIATION LTD,0
South Ribble Borough Council,http://statistics.data.gov.uk/id/local-authority/30UE,Community Development,Miscellaneous Expenses,4851,Design fees for feasibility of a zebra crossing on Stanifield Lane in the vicinity of Farington Park,06/09/2023,0000491894,"7,528.00",Revenue,LANCS COUNTY COUNCIL,0
South Ribble Borough Council,http://statistics.data.gov.uk/id/local-authority/30UE,Capital,Capital Grant,C570,DFG WORK FOR ADAPTATION FOR HOIST AND CHANGING STRETCHER AT ADDRESS REDACTED AS PER SRBC PLANS AND QUOTE SUPPLIED OF ,13/09/2023,0000492033,"1,972.55",Revenue,LANCS COUNTY COUNCIL,0
South Ribble Borough Council,http://statistics.data.gov.uk/id/local-authority/30UE,Capital,Capital Grant,C570,"DFG WORK FOR HOIST EQUIPMENT AT ADDRESS REDACTED AS PER QUOTE SUPPLIED OF 2536.14, TOTAL COST 2536.14",13/09/2023,0000492050,"2,536.14",Revenue,LANCS COUNTY COUNCIL,0
South Ribble Borough Council,http://statistics.data.gov.uk/id/local-authority/30UE,Capital,Capital Grant,C570,"DFG WORK FOR HOIST AT ADDRESS REDACTED AS PER QUOTE SUPPLIED OF 898.00, TOTAL COST 898.00",13/09/2023,0000492051,898.00,Revenue,LANCS COUNTY COUNCIL,0
South Ribble Borough Council,http://statistics.data.gov.uk/id/local-authority/30UE,Capital,Capital Grant,C570,"DFG WORK FOR ADAPTATION FOR A HOIST AT ADDRESS REDACTED AS PER SRBC PLANS AND QUOTE SUPPLIED OF 1635.84, T",13/09/2023,0000492052,"1,635.84",Revenue,LANCS COUNTY COUNCIL,0
South Ribble Borough Council,http://statistics.data.gov.uk/id/local-authority/30UE,Local Land Charges,L C C General,4530,Land Charges - August 2023,27/09/2023,0000492465,970.00,Revenue,LANCS COUNTY COUNCIL,0
South Ribble Borough Council,http://statistics.data.gov.uk/id/local-authority/30UE,Capital,Cap Contract Payment,C230,"Path Repairs & Improvements, Worden Park, Leyland",27/09/2023,0000491844,"178,171.87",Revenue,LANDSCAPE ENGINEERING LIMITED,0
South Ribble Borough Council,http://statistics.data.gov.uk/id/local-authority/30UE,Central Support Services,Professional Fees,4510,Surveys on 5 residential properties in Farington Leyland - relating to the Caddick Development,13/09/2023,0000492101,"2,500.00",Revenue,LEA HOUGH & CO,0
South Ribble Borough Council,http://statistics.data.gov.uk/id/local-authority/30UE,Central Support Services,Consultancy Fees,4541,Carbon Literacy Train the Trainer Course,13/09/2023,0000491945,750.00,Revenue,Lighthouse Sustainability Limited,0
South Ribble Borough Council,http://statistics.data.gov.uk/id/local-authority/30UE,Corporate Management,Grants Voluntary Organisation,4711,Practical Support Payment - Social Isolation initiative,20/09/2023,0000477909,"3,000.00",Revenue,LOSTOCK HALL JUNIORS FOOTBALL CLUB,0
South Ribble Borough Council,http://statistics.data.gov.uk/id/local-authority/30UE,Capital,Cap Contract Payment,C230,Leisure Local funds for Linden Drive pitch drainage - drainage system installation,20/09/2023,0000483748,"15,000.00",Revenue,LOSTOCK HALL JUNIORS FOOTBALL CLUB,0
South Ribble Borough Council,http://statistics.data.gov.uk/id/local-authority/30UE,Culture & Heritage,Miscellaneous Expenses,4851,Peace Field Plaque,20/09/2023,0000490599,640.00,Revenue,LOSTOCK HALL JUNIORS FOOTBALL CLUB,0
South Ribble Borough Council,http://statistics.data.gov.uk/id/local-authority/30UE,Capital,Capital Grant,C570,DFG WORKS FOR RAMP WORK AT ADDRESS REDACTED NEW PROGRESS PROPERTY SO 50% OF TOTAL QUOTE TO BE PAID TOTAL QUOTE 439,13/09/2023,0000492034,"2,195.82",Revenue,MAHONEY CONTRACTORS LTD,0
South Ribble Borough Council,http://statistics.data.gov.uk/id/local-authority/30UE,Capital,Capital Grant,C570,DFG WORKS FOR LEVEL ACCESS BATHROOM AT ADDRESS REDACTED NEW PROGRESS PROPERTY SO 50% OF TOTAL QUOTE TO BE PAID TOTAL QU,13/09/2023,0000492059,"2,896.01",Revenue,MAHONEY CONTRACTORS LTD,0
South Ribble Borough Council,http://statistics.data.gov.uk/id/local-authority/30UE,Capital,Capital Grant,C570,DFG WORKS FOR RAMP AT ADDRESS REDACTED - NEW PROGRESS PROPERTY SO 50% OF TOTAL QUOTE TO BE PAID TOTAL QUOTE 56,13/09/2023,0000492100,"2,821.58",Revenue,MAHONEY CONTRACTORS LTD,0
South Ribble Borough Council,http://statistics.data.gov.uk/id/local-authority/30UE,Capital,Capital Grant,C570,DFG WORKS FOR LEVEL ACCESS BATHROOM AT ADDRESS REDACTED.NEW PROGRESS PROPERTY SO 50% OF TOTAL QUOTE TO BE PAID TOT,27/09/2023,0000492398,"3,329.29",Revenue,MAHONEY CONTRACTORS LTD,0
South Ribble Borough Council,http://statistics.data.gov.uk/id/local-authority/30UE,Capital,Capital Grant,C570,DFG WORKS FOR LEVEL ACCESS BATHROOM AT ADDRESS REDACTED NEW PROGRESS PROPERTY SO 50% OF TOTAL QUOTE TO BE PAID TOTAL QUO,27/09/2023,0000492399,"3,397.56",Revenue,MAHONEY CONTRACTORS LTD,0
South Ribble Borough Council,http://statistics.data.gov.uk/id/local-authority/30UE,Capital,Capital Grant,C570,DFG WORKS FOR LEVEL ACCESS BATHROOM AND RAMP AT ADDRESS REDACTED AS PER PLANS AND SPEC SUPPLIED - NEW PROGRESS PROP,27/09/2023,0000492400,"8,338.61",Revenue,MAHONEY CONTRACTORS LTD,0
South Ribble Borough Council,http://statistics.data.gov.uk/id/local-authority/30UE,Parking Services,Materials General,4040,"x1 QUEENSWAY CLOSE T, X1 ESKDALE ROAD T, X1 61-79, X4 LYNTON AVENUE, X2 BALMORAL AVENUE, X1 CONWAY AVENUE T, X2 EDWARD STREET T, ",06/09/2023,0000491768,"1,040.00",Revenue,Main Street Signs Ltd,0
South Ribble Borough Council,http://statistics.data.gov.uk/id/local-authority/30UE,Central Support Services,External Contractors Charges,4570,Recovery of vehicle (VIN REDACTED) from Lancashire Waste Services Washington Lane Chorley to Millers Transport Gill Lane Longton for ,13/09/2023,0000492056,560.00,Revenue,MILLERS OF LONGTON LTD,0
South Ribble Borough Council,http://statistics.data.gov.uk/id/local-authority/30UE,Central Support Services,Materials General,4040,2 x Camera 6046244 - G066,13/09/2023,0000492124,"1,118.36",Revenue,MRD Parts LTD,0
South Ribble Borough Council,http://statistics.data.gov.uk/id/local-authority/30UE,Central Support Services,Materials General,4040,1 x LH Locking Device Split 5031821 - G068,13/09/2023,0000492125,591.56,Revenue,MRD Parts LTD,0
South Ribble Borough Council,http://statistics.data.gov.uk/id/local-authority/30UE,Community Development,Miscellaneous Expenses,4851,,06/09/2023,0000491982,500.00,Revenue,Muriel Laws,0
South Ribble Borough Council,http://statistics.data.gov.uk/id/local-authority/30UE,Community Development,Miscellaneous Expenses,4851,,27/09/2023,0000492577,500.00,Revenue,Muriel Laws,0
South Ribble Borough Council,http://statistics.data.gov.uk/id/local-authority/30UE,Homelessness,Temporary Accommodation,5311,"Twin	- from 14-Aug to 01-Sep - 18 nights - 1,072.50, , ~ ~ ~, 	,  Double - from 14-Aug to 01-Sep - 18 nights - 984.50,",06/09/2023,0000491959,"7,366.00",Revenue,National Hotel Rooms Ltd t/a Purple Roomz,0
South Ribble Borough Council,http://statistics.data.gov.uk/id/local-authority/30UE,Street Cleansing,Materials General,4040,40x 5L Conqueror @ 76.85 per 5L,06/09/2023,0000491881,"3,074.00",Revenue,NOMIX ENVIRO LTD,0
South Ribble Borough Council,http://statistics.data.gov.uk/id/local-authority/30UE,Surplus or Deficit on Trading,Reactive Repair & Maintenance,2020,Please carry out works to service the pump at Worden Park as request by NAME REDACTED 26th and 27th August 2023 plus travel plus tanke,27/09/2023,0000491820,650.00,Revenue,NORTH WEST MAINTENANCE SERVICES LTD,0
South Ribble Borough Council,http://statistics.data.gov.uk/id/local-authority/30UE,Surplus or Deficit on Trading,Reactive Repair & Maintenance,2020,LABOUR,27/09/2023,0000491820,607.50,Revenue,NORTH WEST MAINTENANCE SERVICES LTD,0
South Ribble Borough Council,http://statistics.data.gov.uk/id/local-authority/30UE,Central Support Services,Materials General,4040,SCARAB MINI SWEEPER BRUSHES - POLY/WIRE MIX-MATHIEU-0120089,06/09/2023,0000491827,"1,118.21",Revenue,NORTHERN MUNICIPAL SPARES LTD,0
South Ribble Borough Council,http://statistics.data.gov.uk/id/local-authority/30UE,Capital,Cap Contract Payment,C230,,06/09/2023,0000489661,"1,472.91",Revenue,NPOWER A0010287906 - BB Leisure Centre Pavillion,0
South Ribble Borough Council,http://statistics.data.gov.uk/id/local-authority/30UE,Capital,Cap Contract Payment,C230,,06/09/2023,0000489709,"1,102.65",Revenue,NPOWER A0010287906 - BB Leisure Centre Pavillion,0
South Ribble Borough Council,http://statistics.data.gov.uk/id/local-authority/30UE,Capital,Cap Contract Payment,C230,,06/09/2023,0000489750,"1,540.55",Revenue,NPOWER A0010287906 - BB Leisure Centre Pavillion,0
South Ribble Borough Council,http://statistics.data.gov.uk/id/local-authority/30UE,Parking Services,Materials General,4040,"120,000 pay and display tickets at 4.41 per 1000",27/09/2023,0000492462,529.20,Revenue,PAPERWORK UK LTD,0
South Ribble Borough Council,http://statistics.data.gov.uk/id/local-authority/30UE,Capital,Capital Grant,C570,"DFG WORK FOR ADAPTATION FOR A BATHROOM ADAPTATION AT ADDRESS REDACTED AS PER SRBC PLANS AND QUOTE SUPPLIED OF 5350.00, TOTAL",13/09/2023,0000492060,"5,350.00",Revenue,Paul Rothwell and Sons,0
South Ribble Borough Council,http://statistics.data.gov.uk/id/local-authority/30UE,Surplus or Deficit on Trading,Planned Annual Repair & Maintenance,2021,"prepare all rainwater goods to both dwellings and apply 2 coats of combi colour with rust, inhibitor, as per NAME REDACTED 5 Oct 20",13/09/2023,0000492072,"5,295.00",Revenue,PDP PROPERTY SERVICES LTD,0
South Ribble Borough Council,http://statistics.data.gov.uk/id/local-authority/30UE,Capital,Cap Contract Payment,C230,Funds from Leisure Local Funding for car park and outdoor regeneration work,06/09/2023,0000491963,"20,000.00",Revenue,Penwortham Cricket Club,0
South Ribble Borough Council,http://statistics.data.gov.uk/id/local-authority/30UE,Capital,Cap Contract Payment,C230,"Leisure Local Grant, Changing Room Refurbishment",06/09/2023,0000491964,"180,000.00",Revenue,PENWORTHAM PRIORY ACADEMY,0
South Ribble Borough Council,http://statistics.data.gov.uk/id/local-authority/30UE,Community Development,Miscellaneous Expenses,4851,,06/09/2023,0000491968,500.00,Revenue,Peter Goulding,0
South Ribble Borough Council,http://statistics.data.gov.uk/id/local-authority/30UE,Community Development,Miscellaneous Expenses,4851,,27/09/2023,0000492563,500.00,Revenue,Peter Goulding,0
South Ribble Borough Council,http://statistics.data.gov.uk/id/local-authority/30UE,Tourism,Rental,4012,2023/ 2024 Annual Contract for Sanitary Services at Worden Hall,13/09/2023,0000492027,"1,517.31",Revenue,PHS GROUP PLC,0
South Ribble Borough Council,http://statistics.data.gov.uk/id/local-authority/30UE,Central Support Services,Legal,4821,ADDRESS REDACTED,06/09/2023,0000491887,"1,000.00",Revenue,PIERS RILEY-SMITH,0
South Ribble Borough Council,http://statistics.data.gov.uk/id/local-authority/30UE,Central Support Services,Agency Staff,1121,Enforcement consultant NAME REDACTED,13/09/2023,0000492179,"1,140.00",Revenue,Planning Control & PACE Solutions,0
South Ribble Borough Council,http://statistics.data.gov.uk/id/local-authority/30UE,Central Support Services,Agency Staff,1121,Enforcement consultant NAME REDACTED,13/09/2023,0000492187,"1,197.00",Revenue,Planning Control & PACE Solutions,0
South Ribble Borough Council,http://statistics.data.gov.uk/id/local-authority/30UE,Development Control,Refunded Income,485R,carver hey farm,13/09/2023,0000491859,"2,310.00",Revenue,Planning Portal,0
South Ribble Borough Council,http://statistics.data.gov.uk/id/local-authority/30UE,Capital,Cap Professional Fees,C210,Graphics - Hoarding Print and Install - Jubilee Gardens (West Paddock),20/09/2023,0000492240,"3,663.92",Revenue,Poppy Signs Ltd,0
South Ribble Borough Council,http://statistics.data.gov.uk/id/local-authority/30UE,Democratic Represent and  Mgnt,Performing Rights,4883,"2023 / 2024 music licence fees for the banqueting suite at the Civic Centre	as per NAME REDACTED and quote submitted on May 2023 to",27/09/2023,0000492535,599.39,Revenue,PPL PRS,0
South Ribble Borough Council,http://statistics.data.gov.uk/id/local-authority/30UE,Economic Development,Performing Rights,4883,"2023/ 2024 music licence fees for Leyland Market, Northcote Street, Leyland as per NAME REDACTED",27/09/2023,0000492535,683.20,Revenue,PPL PRS,0
South Ribble Borough Council,http://statistics.data.gov.uk/id/local-authority/30UE,Economic Development,Contributions to Other Bodies,4730,Preston Community Transport,27/09/2023,0000492144,"7,500.00",Revenue,Preston Community Transport,0
South Ribble Borough Council,http://statistics.data.gov.uk/id/local-authority/30UE,Recreation & Sport,Reactive Repair & Maintenance,2020,Penwortham Leisure Centre. To supply and erect roof edge protection to the perimeter of the building as requested. The handrail w,06/09/2023,0000491632,"6,595.42",Revenue,Preston Scaffolding NW Ltd.,0
South Ribble Borough Council,http://statistics.data.gov.uk/id/local-authority/30UE,Recreation & Sport,Planned Annual Repair & Maintenance,2021,Additional Roof Edge Protection Works at Tennis Centre,06/09/2023,0000491771,"3,203.88",Revenue,Preston Scaffolding NW Ltd.,0
South Ribble Borough Council,http://statistics.data.gov.uk/id/local-authority/30UE,Recreation & Sport,Maintenance & Repair,4013,"Tennis Centre., To supply and erect roof edge protection to the perimeter of the building as requested. The, handrail will be ins",20/09/2023,0000491772,"14,868.24",Revenue,Preston Scaffolding NW Ltd.,0
South Ribble Borough Council,http://statistics.data.gov.uk/id/local-authority/30UE,Elections,Electoral Administration Act,4970,"!0,000 ITR outer envelopes , , 5,000 reply envelopes , , (both as per acknowledgement 11041)",06/09/2023,0000491897,"1,010.95",Revenue,PRINT IMAGE NETWORK LTD,0
South Ribble Borough Council,http://statistics.data.gov.uk/id/local-authority/30UE,Elections,Contract Printing,4127,"Annual Canvass 2023, Printing of Stage 2 canvass communications & envelopes (Invoice A5395)",20/09/2023,0000492326,"1,594.38",Revenue,PRINT IMAGE NETWORK LTD,0
South Ribble Borough Council,http://statistics.data.gov.uk/id/local-authority/30UE,Open Spaces,GM Refurbishment,4657,Aeroskate spares(rail and trolley) as per J2581A.,13/09/2023,0000491925,"4,227.38",Revenue,PROLUDIC LTD,0
South Ribble Borough Council,http://statistics.data.gov.uk/id/local-authority/30UE,Surplus or Deficit on Trading,Reactive Repair & Maintenance,2020,"Take out Defective Fence panels and Remove from site., To Supply and install 7 no Panels as Shown Approximately 6 x 5 using a Fla",13/09/2023,0000491921,"1,080.00",Revenue,PSR & Sons Joiners & Building Contractors,0
South Ribble Borough Council,http://statistics.data.gov.uk/id/local-authority/30UE,Open Spaces,GM Refurbishment,4657,5 tonne digger,06/09/2023,0000491459,630.00,Revenue,Readyplant Limited,0
South Ribble Borough Council,http://statistics.data.gov.uk/id/local-authority/30UE,Open Spaces,GM Refurbishment,4657,Hire of 5 Tonne digger for 1 week,13/09/2023,0000492097,564.00,Revenue,Readyplant Limited,0
South Ribble Borough Council,http://statistics.data.gov.uk/id/local-authority/30UE,Open Spaces,GM Refurbishment,4657,Hire of excavator 01.08.23-11.08.23,13/09/2023,0000492145,572.00,Revenue,Readyplant Limited,0
South Ribble Borough Council,http://statistics.data.gov.uk/id/local-authority/30UE,Recreation & Sport,Maintenance & Repair,4013,SRL debt,06/09/2023,0000490808,"1,556.16",Revenue,Rentokil Intitial UK Ltd,0
South Ribble Borough Council,http://statistics.data.gov.uk/id/local-authority/30UE,Community Development,Miscellaneous Expenses,4851,,06/09/2023,0000491974,500.00,Revenue,Richard Spalding,0
South Ribble Borough Council,http://statistics.data.gov.uk/id/local-authority/30UE,Community Development,Miscellaneous Expenses,4851,,27/09/2023,0000492569,500.00,Revenue,Richard Spalding,0
South Ribble Borough Council,http://statistics.data.gov.uk/id/local-authority/30UE,Capital,Consultancy,C259,Principle Designer Services (RIBA 4-7) Jubilee Gardens Extra Care,06/09/2023,0000491774,"2,720.00",Revenue,RJD Associates (NW) Limited,0
South Ribble Borough Council,http://statistics.data.gov.uk/id/local-authority/30UE,Central Support Services,Materials General,4040,1000 litres Premium Hi Foaming TFR,20/09/2023,0000492188,"1,020.43",Revenue,Saanro International Ltd,0
South Ribble Borough Council,http://statistics.data.gov.uk/id/local-authority/30UE,Community Development,Miscellaneous Expenses,4851,,06/09/2023,0000491966,500.00,Revenue,Salim Malek,0
South Ribble Borough Council,http://statistics.data.gov.uk/id/local-authority/30UE,Community Development,Miscellaneous Expenses,4851,,27/09/2023,0000492561,500.00,Revenue,Salim Malek,0
South Ribble Borough Council,http://statistics.data.gov.uk/id/local-authority/30UE,Community Development,Miscellaneous Expenses,4851,,06/09/2023,0000491972,500.00,Revenue,Sally McDonald,0
South Ribble Borough Council,http://statistics.data.gov.uk/id/local-authority/30UE,Community Development,Miscellaneous Expenses,4851,,27/09/2023,0000492567,500.00,Revenue,Sally McDonald,0
South Ribble Borough Council,http://statistics.data.gov.uk/id/local-authority/30UE,Recreation & Sport,South Ribble Leisure Ltd Costs,5600,Additional Funding,27/09/2023,0000492443,"800,000.00",Revenue,South Ribble Leisure Ltd,0
South Ribble Borough Council,http://statistics.data.gov.uk/id/local-authority/30UE,Short Term Creditors,Amount Paid,0030,Lib Dem Councillors - August 23 Deductions from Payroll,06/09/2023,0000491996,598.25,Revenue,South Ribble Liberal Democrat Councillors,0
South Ribble Borough Council,http://statistics.data.gov.uk/id/local-authority/30UE,Central Support Services,External Contractors Charges,4570,1 x Spec Repair VIN REDACTED JFC19784,20/09/2023,0000492222,"2,835.00",Revenue,Southfield RCV Services Limited,0
South Ribble Borough Council,http://statistics.data.gov.uk/id/local-authority/30UE,Community Development,Core Fund,4861,Support for project supporting community use of the field and security fencing of the environmental pond.,20/09/2023,0000492280,750.00,Revenue,St Patrick`s RC Primary School,0
South Ribble Borough Council,http://statistics.data.gov.uk/id/local-authority/30UE,Service Management & Support,Gas Oil,3134,2000ltr gas oil @ 79.80,06/09/2023,0000491695,"1,608.11",Revenue,Standard Fuel Oils LtdMain,0
South Ribble Borough Council,http://statistics.data.gov.uk/id/local-authority/30UE,Service Management & Support,Diesel Fuel,3132,17000ltr Diesel @ 122.52,06/09/2023,0000491696,"20,765.91",Revenue,Standard Fuel Oils LtdMain,0
South Ribble Borough Council,http://statistics.data.gov.uk/id/local-authority/30UE,Service Management & Support,Gas Oil,3134,2500l Gas Oil @ 80.93pp,20/09/2023,0000492281,"2,175.84",Revenue,Standard Fuel Oils LtdMain,0
South Ribble Borough Council,http://statistics.data.gov.uk/id/local-authority/30UE,Service Management & Support,Diesel Fuel,3132,"17000 Ltrs Diesel @ 123.65ppl into the , feeder tank at ADDRESS REDACTED , Side key for cabinet is available from the , ",20/09/2023,0000492282,"21,550.44",Revenue,Standard Fuel Oils LtdMain,0
South Ribble Borough Council,http://statistics.data.gov.uk/id/local-authority/30UE,Capital,Capital Grant,C570,"DFG WORK TO SUPPLY AND INSTALL A STAIRLIFT AT ADDRESS REDACTED AS PER QUOTE SUPPLIED OF 3180.00, TOTAL COST 3180.0",27/09/2023,0000492402,"3,180.00",Revenue,Stannah Lift Services Ltd,0
South Ribble Borough Council,http://statistics.data.gov.uk/id/local-authority/30UE,Capital,Cap Contract Payment,C230,Additional lime Render works to the old hall wall,20/09/2023,0000492174,"3,616.30",Revenue,Stone Technical Services Group Ltd,0
South Ribble Borough Council,http://statistics.data.gov.uk/id/local-authority/30UE,Central Support Services,External Contractors Charges,4570,Scanning of Microfiche,27/09/2023,0000491304,"2,358.48",Revenue,Storetec Services Limited,0
South Ribble Borough Council,http://statistics.data.gov.uk/id/local-authority/30UE,Central Support Services,External Contractors Charges,4570,Scanning of Microfiche,27/09/2023,0000491305,"2,579.44",Revenue,Storetec Services Limited,0
South Ribble Borough Council,http://statistics.data.gov.uk/id/local-authority/30UE,Central Support Services,Purchase of Bins,4043,"1200 X 6.06 55L HYBRID GREEN BOXES , 1080 X 2.31 LIDS FOR BOXES",20/09/2023,0000492245,"9,766.80",Revenue,STRAIGHT MANUFACTURING LIMITED,0
South Ribble Borough Council,http://statistics.data.gov.uk/id/local-authority/30UE,Community Development,External Catering Charges,4575,"Packed lunches for Summer 2023 HAF @ 5 per person, , Week 1 x400 = 2,000; , Week 2 x355 = 1,775; , Week 3 x460 = 2,300; , Wee",13/09/2023,0000491990,"8,500.00",Revenue,Style Catering,0
South Ribble Borough Council,http://statistics.data.gov.uk/id/local-authority/30UE,Community Development,Miscellaneous Expenses,4851,,06/09/2023,0000491969,500.00,Revenue,Susan Hobson,0
South Ribble Borough Council,http://statistics.data.gov.uk/id/local-authority/30UE,Community Development,Miscellaneous Expenses,4851,,27/09/2023,0000492564,500.00,Revenue,Susan Hobson,0
South Ribble Borough Council,http://statistics.data.gov.uk/id/local-authority/30UE,Capital,Cap Contract Payment,C230,Leyland Town Deal - Site Investigation,20/09/2023,0000492254,"19,756.68",Revenue,Sutcliffe Projects Ltd,0
South Ribble Borough Council,http://statistics.data.gov.uk/id/local-authority/30UE,Community Development,Miscellaneous Expenses,4851,,06/09/2023,0000491970,500.00,Revenue,Tabitha Haliwell,0
South Ribble Borough Council,http://statistics.data.gov.uk/id/local-authority/30UE,Community Development,Miscellaneous Expenses,4851,,27/09/2023,0000492565,500.00,Revenue,Tabitha Haliwell,0
South Ribble Borough Council,http://statistics.data.gov.uk/id/local-authority/30UE,Central Support Services,Network and Security,4247,Line of sight survey at Leyland Civic Centre and Moss Side Depot,20/09/2023,0000491773,"1,570.00",Revenue,The Networking People (TNP) Ltd,0
South Ribble Borough Council,http://statistics.data.gov.uk/id/local-authority/30UE,Central Support Services,Network and Security,4247,Options for purchasing an additional block of RMACs.,20/09/2023,0000491882,"6,000.00",Revenue,The Networking People (TNP) Ltd,0
South Ribble Borough Council,http://statistics.data.gov.uk/id/local-authority/30UE,Central Support Services,Materials General,4040,TR252,13/09/2023,0000491834,525.49,Revenue,Tomlinson Road Tyres,0
South Ribble Borough Council,http://statistics.data.gov.uk/id/local-authority/30UE,Tourism,Electricity,2303,Art and Craft worden Park,13/09/2023,0000492075,"1,555.32",Revenue,Total Gas & Power (Elec) 3006014935 - Worden Hall,0
South Ribble Borough Council,http://statistics.data.gov.uk/id/local-authority/30UE,Central Support Services,Electricity,2303,Civic Ctr,13/09/2023,0000492076,"2,787.62",Revenue,Total Gas & Power (Elec) 3006014946 - Civic Centre,0
South Ribble Borough Council,http://statistics.data.gov.uk/id/local-authority/30UE,Central Support Services,Electricity,2303,1/6 to 31/8/23,13/09/2023,0000492074,"2,783.34",Revenue,Total Gas & Power (Elec) 3006014957 - Moss Side De,0
South Ribble Borough Council,http://statistics.data.gov.uk/id/local-authority/30UE,Economic Development,Gas,2304,30/4 to 31/8/23,27/09/2023,0000492293,504.89,Revenue,Total Gas & Power (Gas) 3006046230 - Leyland Marke,0
South Ribble Borough Council,http://statistics.data.gov.uk/id/local-authority/30UE,Community Development,Miscellaneous Expenses,4851,,06/09/2023,0000491971,500.00,Revenue,Tracey Thom,0
South Ribble Borough Council,http://statistics.data.gov.uk/id/local-authority/30UE,Community Development,Miscellaneous Expenses,4851,,27/09/2023,0000492566,500.00,Revenue,Tracey Thom,0
South Ribble Borough Council,http://statistics.data.gov.uk/id/local-authority/30UE,Economic Development,Professional Fees,4510,Work agreed to support major projects,06/09/2023,0000491210,"15,000.00",Revenue,Trebbi Continuum Limited,0
South Ribble Borough Council,http://statistics.data.gov.uk/id/local-authority/30UE,Economic Development,Professional Fees,4510,Work agreed to support major projects,06/09/2023,0000491942,"13,300.00",Revenue,Trebbi Continuum Limited,0
South Ribble Borough Council,http://statistics.data.gov.uk/id/local-authority/30UE,Economic Development,Professional Fees,4510,"The Bungalow, Worden Park, Development Appraisal Report, Instruction as per NAME REDACTED",20/09/2023,0000492338,"2,150.00",Revenue,Trebbi Continuum Limited,0
South Ribble Borough Council,http://statistics.data.gov.uk/id/local-authority/30UE,Central Support Services,External Contractors Charges,4570,Replace hopper floor VIN REDACTED JFC20364,13/09/2023,0000491188,"2,930.00",Revenue,Trest Limited,0
South Ribble Borough Council,http://statistics.data.gov.uk/id/local-authority/30UE,Central Support Services,External Contractors Charges,4570,Body and hopper overhaul VIN REDACTED JFC20283,13/09/2023,0000491189,"2,770.00",Revenue,Trest Limited,0
South Ribble Borough Council,http://statistics.data.gov.uk/id/local-authority/30UE,Central Support Services,Materials General,4040,Front valve block VIN REDACTED JFC20424,13/09/2023,0000491217,500.00,Revenue,Trest Limited,0
South Ribble Borough Council,http://statistics.data.gov.uk/id/local-authority/30UE,Central Support Services,External Contractors Charges,4570,Replace hopper floor - labiur only VIN REDACTED JFC20205,13/09/2023,0000491265,"1,430.00",Revenue,Trest Limited,0
South Ribble Borough Council,http://statistics.data.gov.uk/id/local-authority/30UE,Central Support Services,Hiring Expenses,3212,"Hire of RCV VIN REDACTED, 1sy July - 31st July 2023, 21 days @ 175.00",13/09/2023,0000491438,"3,675.00",Revenue,Trest Limited,0
South Ribble Borough Council,http://statistics.data.gov.uk/id/local-authority/30UE,Central Support Services,Hiring Expenses,3212,"Hire of RCV VIN REDACTED , 29th August - 29th September 2023, 24 days @ 175.00",13/09/2023,0000492092,525.00,Revenue,Trest Limited,0
South Ribble Borough Council,http://statistics.data.gov.uk/id/local-authority/30UE,Open Spaces,External Contractors Charges,4570,Tree works along Comet Road Leyland as per your Quotation,20/09/2023,0000492317,"4,640.00",Revenue,Trunks Tree Care Ltd,0
South Ribble Borough Council,http://statistics.data.gov.uk/id/local-authority/30UE,Central Support Services,UK Healthcare,1710,01 July 2023,06/09/2023,0000491707,"1,711.20",Revenue,UK healthcare (BDHSC),0
South Ribble Borough Council,http://statistics.data.gov.uk/id/local-authority/30UE,Central Support Services,UK Healthcare,1710,Healthcare payments for SRBC Staff,20/09/2023,0000492061,"2,033.20",Revenue,UK healthcare (BDHSC),0
South Ribble Borough Council,http://statistics.data.gov.uk/id/local-authority/30UE,Central Support Services,UK Healthcare,1710,Healthcare payments for SRBC Staff,20/09/2023,0000492155,"2,065.40",Revenue,UK healthcare (BDHSC),0
South Ribble Borough Council,http://statistics.data.gov.uk/id/local-authority/30UE,Economic Development,Professional Fees,4510,Deposits for MITP 2024 Acts,20/09/2023,0000492318,"27,500.00",Revenue,UK Media Events Ltd,0
South Ribble Borough Council,http://statistics.data.gov.uk/id/local-authority/30UE,Economic Development,Professional Fees,4510,Deposits for MITP 2024 Acts,20/09/2023,0000492319,"1,750.00",Revenue,UK Media Events Ltd,0
South Ribble Borough Council,http://statistics.data.gov.uk/id/local-authority/30UE,Economic Development,Professional Fees,4510,Deposits for MITP 2024 Acts,20/09/2023,0000492320,"7,500.00",Revenue,UK Media Events Ltd,0
South Ribble Borough Council,http://statistics.data.gov.uk/id/local-authority/30UE,Economic Development,Professional Fees,4510,Deposits for MITP 2024 Acts,20/09/2023,0000492321,"7,500.00",Revenue,UK Media Events Ltd,0
South Ribble Borough Council,http://statistics.data.gov.uk/id/local-authority/30UE,Community Development,Miscellaneous Expenses,4851,,06/09/2023,0000491967,500.00,Revenue,Vasco Wackrill,0
South Ribble Borough Council,http://statistics.data.gov.uk/id/local-authority/30UE,Community Development,Miscellaneous Expenses,4851,,27/09/2023,0000492562,500.00,Revenue,Vasco Wackrill,0
South Ribble Borough Council,http://statistics.data.gov.uk/id/local-authority/30UE,Democratic Represent and  Mgnt,External Catering Charges,4575,"6 x cases of coffee beans @87.25 per case, 2 x cases of mikfresh @48.65 per case, 2 x cases of choco @62.10 per case",20/09/2023,0000492284,745.00,Revenue,VENDING ENTERPRISES,0
South Ribble Borough Council,http://statistics.data.gov.uk/id/local-authority/30UE,Economic Development,Public Relations Strategy,4848,Discover South Ribble support,13/09/2023,0000491900,"3,153.33",Revenue,VIVA PR Limited,0
South Ribble Borough Council,http://statistics.data.gov.uk/id/local-authority/30UE,Community Development,Miscellaneous Expenses,4851,,06/09/2023,0000491973,500.00,Revenue,Vivien Mounsey,0
South Ribble Borough Council,http://statistics.data.gov.uk/id/local-authority/30UE,Community Development,Miscellaneous Expenses,4851,,27/09/2023,0000492568,500.00,Revenue,Vivien Mounsey,0
South Ribble Borough Council,http://statistics.data.gov.uk/id/local-authority/30UE,Central Support Services,Government Connect,4212,01 Sept 2023,27/09/2023,0000492451,"2,404.20",Revenue,VODAFONE RE:CABLE & WIRELESS UK,0
South Ribble Borough Council,http://statistics.data.gov.uk/id/local-authority/30UE,Community Development,Professional Fees,4510,"Warehouse Skatepark Summer HAF Camps @ 10 per place, , Week 2 x160 = 1,600; , Week 3 x160 = 1,600; , Week 5 x160 = 1,600; , W",20/09/2023,0000492322,"6,400.00",Revenue,Warehouse Unit 7 CIC,0
South Ribble Borough Council,http://statistics.data.gov.uk/id/local-authority/30UE,Central Support Services,Materials General,4040,"Sensor , Potentiometer, VIN REDACTED, JFC 20582",06/09/2023,0000491744,557.57,Revenue,WasteParts UK Ltd,0
South Ribble Borough Council,http://statistics.data.gov.uk/id/local-authority/30UE,Capital,Cap Contract Payment,C230,Provision of Architect Services and Procurement Support Services to RIBA Stage 3 for the Leyland Town Deal Development,20/09/2023,0000490854,"3,092.41",Revenue,Wilson Mason LLP,0
